Cogmind - Beta 13 @@@ ROGUE MODE // 2024.04.07 @ 04:18:10 Player: Viddaric Result: Destroyed by as-89624 with Assembled Heavy Rifle Performance ------------- Evolutions (1) 500 Regions Visited (3) 600 Robots Destroyed (38) 190 Value Destroyed (799) 799 Prototype IDs (3) 60 Alien Tech Used (0) 0 Bonus (0) 0 TOTAL SCORE: 2149 Bonus ------- None Cogmind --------- Core Integrity 0/400 Matter 260/300 Energy 243/265 System Corruption 4% Temperature Warning (390) Movement Core (300) Ox5 Location -9/Mines Parts ------- > --- POWER (1) -------- Improved Ion Engine > --- PROPULSION (2) --- (None) > --- UTILITY (3) ------ Improved Heat Sink Small Storage Unit Salvage Targeting Computer > --- WEAPON (3) ------- Small Laser Particle Gun > --- INVENTORY (8) ---- Light Ion Engine Medium Battery (150) Small Matter Pod (50) Sensor Array Datajack Peak State ------------ > --- POWER ------------ Ion Engine > --- PROPULSION ------- Wheel Compact Wheel > --- UTILITY ---------- Cooling System Small Storage Unit Salvage Targeting Computer > --- WEAPON ----------- EM Pulse Gun Improved EM Shotgun Improved EM Shotgun > --- INVENTORY -------- Light Ion Engine Wheel Heat Sink Medium Battery Sensor Array EM Pulse Gun EM Pulse Gun Datajack [Rating: 15] Favorites ----------- Power Ion Engine Engine Ion Engine Propulsion Wheel Wheel Wheel Hover Unit Hover Unit Utility Small Storage Unit Device Terrain Scanner Storage Small Storage Unit Processor Salvage Targeting Computer Protection Propulsion Shielding Weapon EM Pulse Gun Energy Gun EM Pulse Gun Ballistic Gun Assault Rifle Special Melee Weapon Datajack Build | -11 -10 -9 -9 ------- Run | Yrd Mat Mat Min Slots Evolved 2 | . . 2 . Power . | . . . . Propulsion . | . . . . Utility 1 | . . 1 . Weapon 1 | . . 1 . Parts Attached 48 | 6 10 29 3 Power 6 | 1 1 4 . Engine 6 | 1 1 4 . Core . | . . . . Reactor . | . . . . Propulsion 18 | 2 5 9 2 Treads . | . . . . Leg . | . . . . Wheel 14 | 2 1 9 2 Hover 4 | . 4 . . Flight . | . . . . Utility 10 | 1 2 6 1 Device 4 | . . 3 1 Storage 3 | 1 . 2 . Processor 2 | . 2 . . Hackware . | . . . . Protection 1 | . . 1 . Artifact . | . . . . Weapon 14 | 2 2 10 . Energy Gun 12 | 1 2 9 . Energy Cannon . | . . . . Ballistic Gun 1 | 1 . . . Ballistic Cannon . | . . . . Launcher . | . . . . Special Weapon . | . . . . Impact Weapon . | . . . . Slashing Weapon . | . . . . Piercing Weapon . | . . . . Special Melee Weapon 1 | . . 1 . Unidentified Prototypes 1 | . . 1 . Parts Lost 15 | . 1 8 6 Power 1 | . . 1 . Propulsion 7 | . 1 2 4 Utility 1 | . . . 1 Weapon 6 | . . 5 1 Highest Loss Streak 6 | . 1 6 6 To Critical Strikes . | . . . . Average Slot Usage (%) 93 | . 94 92 90 Engine 11 | . 14 10 11 Wheel 14 | . 5 20 15 Hover 8 | . 21 . . Device 3 | . . 4 9 Storage 13 | . 14 13 11 Processor 10 | . 10 11 11 Energy Gun 25 | . 17 29 31 Ballistic Gun 3 | . 9 . . Naked Turns . | . . . . Heaviest Build 20 | 14 14 20 18 Greatest Support 26 | 26 26 26 20 Greatest Overweight (x) 1 | . . 1 1 Average Overweight (x) . | . . . . Largest Inventory Capacity 8 | 8 8 8 8 Average Capacity 7 | 6 8 8 8 Most Carried 8 | 1 8 8 8 Average Carried 6 | . 5 7 6 Final Capacity 8 | 8 8 8 8 Final Carried 8 | 1 8 8 5 Class Distribution -------------------- 46% | Mutant 19% | Scavenger-Skirmisher 13% | Tank 10% | Scavenger-Gunner 5% | Scavenger-Mutant 4% | Gunner Dominant Class ---------------- Mutant | -10/Materials Scavenger-Skirmisher | -9/Materials Scavenger-Skirmisher | -9/Mines Resources | -11 -10 -9 -9 ----------- Run | Yrd Mat Mat Min Matter Collected 763 | 211 212 340 . Remotely . | . . . . Salvage Created 1401 | . 240 1078 83 Parts 100 | . 21 75 4 Haulers Intercepted 1 | . . 1 . Recyclers Shooed 2 | . 1 1 . Parts Field Recycled . | . . . . Retrieved Matter . | . . . . Parts Self-Destructed . | . . . . Prevented . | . . . . Kills | -11 -10 -9 -9 ------- Run | Yrd Mat Mat Min Combat Hostiles Destroyed 26 | . 5 15 6 Guns 24 | . 5 13 6 AOE 1 | . . 1 . Classes Destroyed 11 | . 5 5 1 Worker 1 | . . 1 . Builder 6 | . . 6 . Hauler 1 | . . 1 . Recycler 2 | . 1 1 . Operator 1 | . 1 . . Watcher 4 | . 2 2 . Swarmer 7 | . 4 . 3 Grunt 14 | . 1 13 . Duelist 1 | . . 1 . Sentry 1 | . . 1 . Assembled 3 | . . . 3 Best Kill Streak 6 | . 6 6 3 Combat Bots Only 5 | . 4 5 3 Max Kills in Single Turn 2 | . 1 2 1 Gunslinging . | . . . . Exploded 1 | . . 1 . Melee . | . . . . Uniques/NPCs Destroyed . | . . . . Combat | -11 -10 -9 -9 -------- Run | Yrd Mat Mat Min Hostile Shots Fired 188 | . 44 98 46 Missed 58 | . 16 31 11 Damage Taken 1698 | . 256 914 528 Core 467 | . 55 254 158 Absorbed by Shields . | . . . . Core Remaining (%) 89 | 100 78 . . Volleys Fired 102 | . 32 55 15 Largest 3 | . 2 3 3 Hottest 145 | . 80 145 145 Shots Fired 239 | . 56 143 40 Gun 239 | . 56 143 40 Cannon . | . . . . Launcher . | . . . . Special . | . . . . Kinetic 26 | . 26 . . Thermal 102 | . 18 44 40 Explosive . | . . . . Electromagnetic 111 | . 12 99 . Robot Hit Streak 15 | . 4 15 5 Robot Miss Streak 8 | . 6 8 4 Penetration Max . | . . . . Secondary Targets 5 | . 1 1 3 Max Gunslinging Chain 1 | . 1 1 1 Shots Hit Robots 140 | . 28 95 17 Core Hits 61 | . 10 42 9 Critical Kills . | . . . . Critical Parts Destroyed . | . . . . Critical Strikes 6 | . 1 4 1 Burn 2 | . . 1 1 Corrupt 4 | . 1 3 . Melee Attacks 2 | . . 2 . Impact . | . . . . Slashing . | . . . . Piercing . | . . . . Sneak Attacks . | . . . . Combat Hostiles . | . . . . Follow-up Attacks . | . . . . Damage Inflicted 2136 | . 472 1445 219 Guns 1812 | . 355 1238 219 Cannons . | . . . . Explosions 324 | . 117 207 . Melee . | . . . . Ramming . | . . . . Kinetic 216 | . 216 . . Thermal 951 | . 203 529 219 Explosive . | . . . . Electromagnetic 969 | . 53 916 . Impact . | . . . . Slashing . | . . . . Piercing . | . . . . Highest Corruption 4 | . . . 4 Average Corruption 4 | . . . 4 Corruption Purged . | . . . . Corruption Blocked . | . . . . Overload Shots . | . . . . Overflow Damage 15 | . 15 . . Projectiles . | . . . . Explosions 15 | . 15 . . Melee . | . . . . Knockbacks . | . . . . Impact . | . . . . Kinetic . | . . . . Secondary . | . . . . Self-Inflicted Damage 52 | . . 52 . Shots 3 | . . 3 . Rammed . | . . . . Targets Rammed . | . . . . Kicked . | . . . . Crushed . | . . . . Highest Temperature 426 | . 122 359 426 Average Temperature 110 | . 33 103 244 Received Heat Transfer 667 | . 18 429 220 Effects 4 | . . 1 3 Shutdowns 2 | . . 1 1 Interference 1 | . . . 1 Matter Decay 1 | . . . 1 Siege Activations . | . . . . Robots Corrupted 1 | . . 1 . Combat Hostiles 1 | . . 1 . Parts Fried 6 | . . 6 . Impact Corruptions . | . . . . Robots Melted . | . . . . Combat Hostiles . | . . . . Parts Melted 4 | . 1 3 . Heat Transferred 2039 | . 409 1059 571 Parts Sabotaged . | . . . . Parts Stolen . | . . . . Parts Stripped . | . . . . Power Chain Reactions 4 | . 1 3 . Alert | -11 -10 -9 -9 ------- Run | Yrd Mat Mat Min Peak Influence 382 | . 216 382 228 Initial 143 | . . 91 143 Average 205 | . 145 256 203 Maximum Alert Level 1 | . 1 1 1 Low Security (%) 48 | 100 76 28 42 Level 1 51 | . 23 71 57 Level 2 . | . . . . Level 3 . | . . . . Level 4 . | . . . . Level 5 . | . . . . High Security . | . . . . Max Security . | . . . . Squads Dispatched 3 | . 1 2 . Investigation 2 | . . 2 . Extermination . | . . . . Reinforcement 1 | . 1 . . Assault . | . . . . Garrison . | . . . . Intercept . | . . . . Searches Triggered . | . . . . Construction Impeded . | . . . . Haulers Reinforced . | . . . . Active Scanning Responses . | . . . . Cargo Convoy Interrupts . | . . . . Stealth | -11 -10 -9 -9 --------- Run | Yrd Mat Mat Min Distress Signals 1 | . 1 . . Communications Jammed . | . . . . Distress Signals . | . . . . Times Spotted 45 | . 10 21 14 Peak Tracking Total 12 | . 4 5 12 Tactical Retreats 3 | . . 2 1 Traps | -11 -10 -9 -9 ------- Run | Yrd Mat Mat Min Traps Triggered 1 | . 1 . . Indirectly . | . . . . Trap Hack Attempts . | . . . . Triggered . | . . . . Disarmed . | . . . . Reprogrammed . | . . . . Reused . | . . . . Traps Extracted . | . . . . Installed . | . . . . Triggered . | . . . . Machines | -11 -10 -9 -9 ---------- Run | Yrd Mat Mat Min Machines Disabled 1 | . . . 1 Max in Single Turn 1 | . . . 1 Machines Repaired . | . . . . Machines Dismantled . | . . . . Machines Sabotaged . | . . . . Overloaded Fab Kills . | . . . . Hacking | -11 -10 -9 -9 --------- Run | Yrd Mat Mat Min Machines Accessed 8 | . 5 3 . Terminals 4 | . 3 1 . Fabricators . | . . . . Repair Stations 1 | . . 1 . Recycling Units 3 | . 2 1 . Scanalyzers . | . . . . Garrison Access . | . . . . Total Hacks 19 | . 12 7 . Successful 7 | . 6 1 . Failed 12 | . 6 6 . Catastrophic 1 | . 1 . . Database Lockouts . | . . . . Manual . | . . . . Terminals 10 | . 7 3 . Fabricators . | . . . . Repair Stations 1 | . . 1 . Recycling Units 8 | . 5 3 . Scanalyzers . | . . . . Garrison Access . | . . . . Terminal Hacks 4 | . 4 . . Record 2 | . 2 . . Prototype ID Bank 1 | . 1 . . Locate Traps 1 | . 1 . . Fabricator Hacks . | . . . . Repair Station Hacks . | . . . . Recycling Unit Hacks 3 | . 2 1 . Report Inventory 3 | . 2 1 . Scanalyzer . | . . . . Garrison Access Hacks . | . . . . Unauthorized Hacks . | . . . . Terminals . | . . . . Fabricators . | . . . . Repair Stations . | . . . . Recycling Units . | . . . . Scanalyzers . | . . . . Garrison Access . | . . . . Data Cores Recovered . | . . . . Used . | . . . . Hacking Detections 6 | . 3 3 . Full Trace Events 2 | . . 2 . Feedback Events . | . . . . Feedback Blocked . | . . . . Robot Schematics Acquired . | . . . . Robots Built . | . . . . Authchips . | . . . . Time . | . . . . Total Robot Build Rating . | . . . . Part Schematics Acquired . | . . . . Parts Built . | . . . . Authchips . | . . . . Time . | . . . . Total Part Build Rating . | . . . . Parts Repaired . | . . . . Time . | . . . . Parts Recycled . | . . . . Recycled Matter . | . . . . Retrieved Matter . | . . . . Retrieved Components . | . . . . Parts Scanalyzed . | . . . . Part Schematics Acquired . | . . . . Parts Damaged . | . . . . Bothacking | -11 -10 -9 -9 ------------ Run | Yrd Mat Mat Min Used RIF Installer . | . . . . Robots Hacked 1 | . . 1 . Non-combat 1 | . . 1 . Combat . | . . . . Robot Hacks Applied 1 | . . 1 . no_distress 1 | . . 1 . Relay Couplers Released . | . . . . Fabnet Peak Effective % . | . . . . Robots Rewired . | . . . . Allies Hacked . | . . . . Hacks Repelled . | . . . . Allies | -11 -10 -9 -9 -------- Run | Yrd Mat Mat Min Total Allies . | . . . . Largest Group . | . . . . Highest-Rated Group . | . . . . Highest-Rated Ally . | . . . . Total Orders . | . . . . Ally Attacks . | . . . . Total Damage . | . . . . Kills . | . . . . Allies Corrupted . | . . . . Allies Melted . | . . . . Intel | -11 -10 -9 -9 ------- Run | Yrd Mat Mat Min Robot Analysis Total . | . . . . Derelict Logs Recovered . | . . . . Drone Launches . | . . . . Drone Recoveries . | . . . . Exploration | -11 -10 -9 -9 ------------- Run | Yrd Mat Mat Min Turns Passed 1094 | 43 366 612 73 Spaces Moved 830 | 37 369 395 29 Core 1 | 1 . . . Treads . | . . . . Legs . | . . . . Wheels 484 | 36 34 385 29 Hover 345 | . 335 10 . Flight . | . . . . Fastest Speed 50 | 50 56 56 80 Average Speed 74 | 89 59 85 80 Slowest Speed 100 | 100 100 100 95 Overloaded Moves . | . . . . Propulsion Burnouts . | . . . . Robots Hopped . | . . . . Cave-ins Triggered . | . . . . Exploration Rate (%) 20 | 4 47 20 12 Regions Visited 3 Branch Regions 1 Pre-discovered Areas . | . . . . Known Exits Taken . | . . . . Unknown Exits Taken 3 | 1 1 1 . Scrap Searched . | . . . . Spaces Dug . | . . . . Terrain Destroyed 17 | . 1 16 . Melee . | . . . . Projectile . | . . . . AOE 17 | . 1 16 . Terrain Rammed . | . . . . Walls Destroyed . | . . . . Machines Disabled . | . . . . Actions | -11 -10 -9 -9 --------- Run | Yrd Mat Mat Min Total 1097 | 43 457 550 47 Wait 73 | . 28 45 . Move 827 | 36 368 394 29 Hop . | . . . . Pick Up 17 | 1 10 6 . Fast Attach 24 | 6 7 11 . Attach 8 | . . 5 3 Detach 3 | . . 3 . Swap 16 | . 3 13 . Drop 25 | . 9 16 . Fire 102 | . 32 55 15 Melee 2 | . . 2 . Ram . | . . . . Kick . | . . . . Crush . | . . . . Escape Stasis . | . . . . Rewire . | . . . . Trap . | . . . . Miscellaneous . | . . . . Route ------- -11/Scrapyard -10/Materials (discovered 2 exits: *Mat / [*Min]) -9/Materials -9/Mines History --------- Turn | Location | Event 22 | -11/Scrapyard | Discovered new exit (range 15) 44 | -11/Scrapyard | Entered Materials 326 | -10/Materials | Build established: Mutant 350 | -10/Materials | Discovered new exit (range 17) 378 | -10/Materials | Discovered new exit (range 17) 410 | -10/Materials | Entered another Materials area 410 | -9/Materials | Evolved 2 slots: Utility x1, Weapon x1 410 | -9/Materials | Discovered new exit (range 14) 794 | -9/Materials | Lost 6 parts (1n5w) 822 | -9/Materials | Core integrity fell below 50% 1022 | -9/Materials | Entered Mines 1023 | -9/Mines | Assembled infested the area 1050 | -9/Mines | A Derelict revealed a hidden shortcut to a safe place 1078 | -9/Mines | Core integrity fell below 20% 1095 | -9/Mines | Destroyed by as-89624 with Assembled Heavy Rifle Last Messages --------------- A derelict emerges from the shadows: "It's not safe here! Let me show you to a place where you won't have to worry about staying in one piece!" HQ-L0J(z) destroyed. Wheel destroyed. System corrupted by crushing effect (+4). Knocked back. as-06615 suffers critical hit (Burn). Terrain Scanner destroyed. as-06615 destroyed. Switching to secondary target: as-01173. as-01173 destroyed. Wheel destroyed. Sml. Laser destroyed. Power failure, Imp. Ion Engine shutdown. Wheel destroyed. as-54077 destroyed. Overheating: Matter decay (-35). Destroyed Asb. F-torch. Map ----- +----------------------------------------------------+ | | | | | | | | | | | | | | | | | | | | | | | | | | | ?????????????????????????????????????????????????? | | ?????????????????????????????????????????????????? | | ?????????????????????????????????????????????????? | | ?????????????????????????????????????????????????? | | ?????????????????????????????????????????????????? | | ????????????????????###??????????????????????????? | | ???????????????????## #????????????????????#????? | | ???????????????????# #########??????????####??? | | ???????????????????# ##?????????? #??? | | ???????????????????# ##?????????# #??? | | ???????????????????# ##??#?????# #??? | | ???????????????????# aa #????????# #??? | | ???????????????????# @%% ## #????????# #??? | | ???????????????????# #### ######??## #??# | | ???????????????????## #??# = ##### #??? | | ????????????????????##### ##?# =%#### ##% #??? | | ????????????????????????####??# #?## ##**"""#??? | | ??????????????????????????????# #?# %%"""#??? | | ?????????????????????????????# #?# ##[= ""#??? | | ?????????????????????????????# ?# ## #??? | | ????????????????????????????? ## #??? | | ???????????????????????????? ## #??? | | ??????????????????????????? #########??? | | ?????????????????????????? ?#?????????? | | ????????????????????????? ### ???????????? | | ????????????????????????##??## ???????????? | | ?????????????????????????????# ???????????? | | ?????????????????????????????# ???#???????# | | ????????????????????????????? ???????????? | | ?????????????????????????????? ## ???????????? | | ??????????????????????????????????# ??? ????????? | | ???????????????????????????????????? ????????????? | | ?????????????????????????????????????????????????? | | ?????????????????????????????????????????????????? | | ?????????????????????????????????????????????????? | | ?????????????????????????????????????????????????? | | ?????????????????????????????????????????????????? | +----------------------------------------------------+ Best States ------------- Heat Dissipation 50 Energy Generation 12 Energy Capacity 400 Matter Stores 300 Matter Capacity 300 Sight Range 18 Terrain Scan Range 14 Terrain Scan Density 10 Propulsion Shielding 33 Evasion (%) 53 Salvage Targeting 1 Item Schematics ----------------- None Robot Schematics ------------------ None Fabricated ------------ Nothing Alien Tech Used ----------------- None Achievements -------------- None Challenges ------------ None Game ------ Seed HeatArchitectAirjet Manual? 0 Play Time 00:41:47 Cumulative 16.4 hours Start 2024.04.07 @ 03:32:56 End 2024.04.07 @ 04:18:10 Sessions 1 Manual Loads 0 Difficulty Rogue Special Mode None Game No. 8 Rogue 8 Adventurer 0 Explorer 0 Win Type - Total 0 Types 0/0/0/0/0/0/0/0/0 Lore% 9 Gallery% 21 Achievement% 18 Wizard Run 0 Options --------- Layout 1 ASCII 0 Keyboard 0 Movement Mouse Keybinds 0 Fullscreen 2 Font 24/Cog Map View 50x35 Zoom Use 0% Tactical HUD 0 Map Filters NONE Filters NONE Steam 1 RUN: 76bca709-f311-4135-bc27-f9b8398f6663